bitfinex-derivatives/quotes_ETHF0:USTF0_20250430
["timestamp","ask_amount","ask_price","bid_price","bid_amount"]
[1745980474734,7.71529,1798.2,1798.1,1.112]
[1745980475135,11.54329,1798.2,1798.1,1.112]
[1745980475836,6.3535,1798.2,1798.1,1.112]
[1745980476028,2.4253,1798.4,1798.3,1.11188]
[1745980476229,1.6231,1798.4,1798.3,4.67088]
[1745980476532,0.806,1798.5,1798.4,1.11182]
[1745980476730,6.37098061,1798.6,1798.5,1.11175]
[1745980476731,5.56878061,1798.6,1798.5,1.11175]
[1745980477032,4.2369543,1798.7,1798.6,1.11169]
[1745980477237,1.4518043,1798.7,1798.6,9.48529]
[1745980477538,4.3e-06,1798.7,1798.6,55.28529]
[1745980477734,7.99299936,1798.8,1798.7,1.11163]
[1745980478032,6.12354936,1798.8,1798.7,8.62043]
[1745980478233,2.02377936,1798.8,1798.7,17.8980856]
[1745980478435,1.6231,1799.4,1799.3,1.11126]
[1745980479234,5.4511,1799.4,1799.3,1.11126]
[1745980480235,2.7343,1799.4,1799.3,1.11126]
[1745980480537,1.11126,1799.3,1799.2,3.558]
[1745980480739,2.75826,1799.3,1799.2,3.558]
[1745980481238,6.58626,1799.3,1799.2,3.558]
[1745980481426,6.58626,1799.3,1799.2,4.66932]
[1745980481827,5.475,1799.3,1799.2,4.66932]
[1745980482431,6.58626,1799.3,1799.2,4.66932]
[1745980483039,5.475,1799.3,1799.2,4.66932]
[1745980483840,3.828,1799.3,1799.2,4.66932]
[1745980484227,1.5761,1799.4,1799.3,1.11126]
[1745980484426,1.5761,1799.4,1799.3,2.71996]
[1745980485236,1.7285,1799.6,1799.5,1.11114]
[1745980485737,2.83958,1799.6,1799.5,1.11114]
[1745980492240,1.1112,1799.4,1799.3,1.11124]
[1745980492837,1.11126,1799.3,1799.2,4.66928]
[1745980493042,2.74356,1799.3,1799.2,4.66928]
[1745980493635,1.6323,1799.3,1799.2,4.66928]
[1745980494039,2.74356,1799.3,1799.2,4.66928]
[1745980494532,2.74356,1799.3,1799.2,3.558]
[1745980495842,4.4106,1799.3,1798.9,4.31927]
[1745980496039,1.11138,1799.1,1799.0,3.555]
[1745980496441,2.81758,1799.1,1799.0,3.555]
[1745980496847,2.81758,1799.1,1799.0,4.66645]
[1745980497546,2.81758,1799.1,1799.0,6.34745]
[1745980498648,1.7062,1799.1,1799.0,6.34745]
[1745980500651,2.81758,1799.1,1799.0,6.34745]
[1745980500841,2.81758,1799.1,1799.0,4.66645]
[1745980501549,1.7062,1799.1,1799.0,4.66645]
[1745980501951,1.7062,1799.1,1799.0,6.35555]
[1745980502751,2.81758,1799.1,1799.0,6.35555]
[1745980502951,1.7062,1799.1,1799.0,6.35555]
[1745980503251,2.81758,1799.1,1799.0,6.35555]
[1745980504345,1.7062,1799.1,1799.0,6.35555]
[1745980504550,2.81758,1799.1,1799.0,6.35555]
[1745980504853,1.7062,1799.1,1799.0,6.35555]
[1745980505956,2.81758,1799.1,1799.0,6.35555]
[1745980506151,2.81758,1799.1,1799.0,4.66645]
[1745980506348,2.81758,1799.1,1799.0,3.555]
[1745980507154,6.64558,1799.1,1799.0,3.555]
[1745980507354,6.64558,1799.1,1799.0,4.66645]
[1745980508348,7.45258,1799.1,1799.0,4.66645]
[1745980509154,3.828,1799.1,1799.0,4.66645]
[1745980509551,3.828,1799.1,1799.0,6.39875]
[1745980510157,3.64491,1799.3,1799.2,1.11132]
[1745980510552,3.64491,1799.3,1799.2,2.84362]
[1745980511657,7.47291,1799.3,1799.2,2.84362]
[1745980513160,7.47291,1799.3,1799.2,2.83933831]
[1745980513459,3.828,1799.3,1799.2,2.83933831]
[1745980513956,3.828,1799.3,1799.2,3.65093831]
[1745980514154,6.81419,1799.6,1799.5,1.11114]
[1745980514748,6.81419,1799.6,1799.5,2.69294]
[1745980515045,4.31889,1799.6,1799.5,2.69294]
[1745980515255,3.828,1799.6,1799.5,3.49194]
[1745980516193,0.8292,1799.9,1799.8,1.11095]
[1745980516484,2.4627,1799.9,1799.8,1.11095]
[1745980516688,2.4627,1799.9,1799.7,6.26736]
[1745980516890,5.95225,1799.8,1799.7,3.555]
[1745980517080,2.74445,1799.8,1799.7,3.555]
[1745980517289,6.57245,1799.8,1799.7,3.555]
[1745980517784,9.78025,1799.8,1799.7,3.555]
[1745980518588,1.11114,1799.5,1799.4,3.555]
[1745980518983,1.1112,1799.4,1799.3,1.11119]
[1745980519186,4.9392,1799.4,1799.3,1.11119]
[1745980519384,6.5162,1799.4,1799.3,1.11119]
[1745980520895,1.11131,1799.3,1799.2,1.11128]
[1745980521090,2.68831,1799.3,1799.2,3.555]
[1745980521287,2.68831,1799.3,1799.2,4.66632]
[1745980521484,1.577,1799.3,1799.2,4.66632]
[1745980521787,3.828,1799.4,1799.3,1.11126]
[1745980521989,3.828,1799.4,1799.3,3.58836]
[1745980522308,1.92885,1799.5,1799.4,1.1112]
[1745980522486,1.92885,1799.5,1799.4,2.7525]
[1745980523279,5.75685,1799.5,1799.4,2.7525]
[1745980523480,3.828,1799.5,1799.4,2.7525]
[1745980524384,2.81552,1799.6,1799.5,1.11114]
[1745980524582,2.81552,1799.6,1799.5,7.16254]
[1745980525072,6.64352,1799.6,1799.5,7.16254]
[1745980526476,6.64352,1799.6,1799.5,4.66514]
[1745980528862,5.5324,1799.6,1799.5,4.66514]
[1745980529062,6.64348,1799.6,1799.5,4.66514]
[1745980530962,3.828,1799.6,1799.5,4.66514]
[1745980531352,4.0347,1799.7,1799.6,1.11108]
[1745980531558,3.6208,1799.8,1799.7,1.11101]
[1745980531962,3.6208,1799.8,1799.7,2.74981]
[1745980532165,7.4488,1799.8,1799.7,1.11101]
[1745980533171,1.11101,1799.7,1799.6,1.90182]
[1745980533470,2.74811,1799.7,1799.6,1.11102]
[1745980533766,1.6371,1799.7,1799.6,1.11102]
[1745980533967,2.74811,1799.7,1799.6,2.85552]
[1745980534168,6.57611,1799.7,1799.6,2.85552]
[1745980537872,5.4651,1799.7,1799.6,2.85552]
[1745980538073,3.828,1799.7,1799.6,2.85552]
[1745980538267,6.78113,1799.9,1799.8,1.11095]
[1745980538469,3.57333,1799.9,1799.8,1.11095]
[1745980539067,7.40133,1799.9,1799.8,1.11095]
[1745980539673,10.60913,1799.9,1799.8,1.11095]
[1745980539865,7.40133,1799.9,1799.8,1.11095]
[1745980540470,10.60913,1799.9,1799.8,1.11095]
[1745980540771,7.40133,1799.9,1799.8,1.11095]
[1745980540973,10.60913,1799.9,1799.8,1.11095]
[1745980541971,7.40133,1799.9,1799.8,1.11095]
[1745980542171,10.60913,1799.9,1799.8,1.11095]
[1745980544975,9.4982,1799.9,1799.8,1.11095]
[1745980545276,3.828,1799.9,1799.8,4.32155]
[1745980545474,3.828,1799.9,1799.8,16.08235]
[1745980545777,3.828,1799.9,1799.8,11.08235]
[1745980546168,4.9559,1800.3,1800.2,1.1107]
[1745980546368,10.86799332,1800.4,1800.3,1.11064]
[1745980546369,11.14302332,1800.4,1800.3,1.11064]
[1745980546574,11.14297332,1800.4,1800.3,1.11064]
[1745980546776,10.03239332,1800.4,1800.3,1.11064]
[1745980546972,10.03239332,1800.4,1800.3,2.68864]
[1745980547177,13.86039332,1800.4,1800.3,2.68864]
[1745980547480,14.97097332,1800.4,1800.3,2.68864]
[1745980547670,16.66717332,1800.4,1800.3,2.68864]
[1745980549983,14.12887332,1800.4,1800.3,2.68864]
[1745980550479,15.72487332,1800.4,1800.3,2.68864]
[1745980551282,6.53458,1800.4,1800.3,2.68864]
[1745980552486,5.424,1800.4,1800.3,2.68864]
[1745980552675,3.828,1800.4,1800.3,2.68864]
[1745980553072,3.828,1800.4,1800.3,7.68864]
[1745980553278,1.9216,1800.9,1800.8,1.11033]
[1745980553783,1.11033,1800.8,1800.7,2.82605]
[1745980553987,3.58692,1800.9,1800.8,1.11033]
[1745980554177,1.92162,1800.9,1800.8,1.11033]
[1745980555187,5.74962,1800.9,1800.8,1.11033]
[1745980555482,8.95742,1800.9,1800.8,1.11033]
[1745980560087,1.11033,1800.8,1800.7,2.82604]
[1745980560285,4.93833,1800.8,1800.7,2.82604]
[1745980560789,3.828,1800.8,1800.7,2.82604]
[1745980561088,4.93833,1800.8,1800.7,2.82604]
[1745980561481,4.93833,1800.8,1800.7,1.11034]
[1745980561687,4.93839,1800.8,1800.7,1.1104]
[1745980562186,3.828,1800.8,1800.7,1.1104]
[1745980562387,3.828,1800.8,1800.7,2.8545]
[1745980562587,3.828,1800.8,1800.7,3.6576]
[1745980564391,4.93833,1800.8,1800.7,3.6576]
[1745980565190,4.93833,1800.8,1800.7,2.8545]
[1745980565903,5.76333,1800.8,1800.7,1.1104]
[1745980567494,3.828,1800.8,1800.7,1.1104]
[1745980567699,3.828,1800.8,1800.7,3.5807]
[1745980568400,4.93833,1800.8,1800.7,2.7154]
[1745980568897,6.62873,1800.8,1800.7,2.7154]
[1745980569099,5.5184,1800.8,1800.7,2.7154]
[1745980569693,6.62873,1800.8,1800.7,2.7154]
[1745980570001,6.62873,1800.8,1800.7,1.1104]
[1745980571903,6.62873,1800.8,1800.7,4.6614]
[1745980572906,6.62873,1800.8,1800.7,3.551]
[1745980573098,6.62873,1800.8,1800.7,4.6614]
[1745980574102,5.5184,1800.8,1800.7,4.6614]
[1745980574504,3.828,1800.8,1800.7,6.2549]
[1745980574802,3.828,1800.8,1800.7,7.12]
[1745980575202,3.2078,1800.9,1800.8,1.11033]
[1745980575402,3.2078,1800.9,1800.8,3.53903]
[1745980575712,1.6641,1801.0,1800.9,1.11027]
[1745980575897,6.06719,1801.1,1801.0,1.11021]
[1745980576097,10.75529,1801.1,1801.0,1.11021]
[1745980576396,10.75529,1801.1,1801.0,4.66121]
[1745980581005,7.54749,1801.1,1801.0,4.66121]
[1745980581311,6.4373,1801.1,1801.0,4.66121]
[1745980581603,3.828,1801.1,1801.0,5.47531]
[1745980582209,3.2078,1801.3,1801.2,1.11009]
[1745980582809,3.2078,1801.3,1801.2,2.85549]
[1745980583210,4.41359,1801.4,1801.3,1.11003]
[1745980583410,4.41359,1801.4,1801.3,2.85543]
[1745980583610,4.41357,1801.4,1801.3,2.85543]
[1745980584009,4.41357,1801.4,1801.3,6.40443]
[1745980584210,8.24157,1801.4,1801.3,6.40443]
[1745980585911,8.24157,1801.4,1801.3,4.65903]
[1745980587214,8.24157,1801.4,1801.3,3.549]
[1745980588413,8.24157,1801.4,1801.3,4.65903]
[1745980591516,8.24157,1801.4,1801.3,3.549]
[1745980592508,1.11009,1801.2,1801.1,1.11012]
[1745980593214,4.93809,1801.2,1801.1,1.11012]
[1745980595218,1.11015,1801.1,1801.0,9.55747]
[1745980595419,3.62075,1801.1,1801.0,9.55747]
[1745980596013,2.5106,1801.1,1801.0,9.55747]
[1745980596211,6.3386,1801.1,1801.0,9.55747]
[1745980596520,7.44875,1801.1,1801.0,9.55747]
[1745980600013,6.3386,1801.1,1800.8,5.902]
[1745980600219,6.3386,1801.1,1800.7,14.58378963]
[1745980600220,1.11033,1800.8,1800.7,14.58378963]
[1745980600522,1.7292,1801.0,1800.9,1.11027]
[1745980600720,2.83941,1801.0,1800.9,1.11027]
[1745980601111,2.83941,1801.0,1800.8,1.7335]
[1745980601112,1.11027,1800.9,1800.8,1.11028]
[1745980601312,1.11033,1800.8,1800.7,12.91737963]
[1745980601512,1.95733,1800.8,1800.7,10.95092963]
[1745980601713,3.63143,1800.8,1800.7,10.95092963]
[1745980602016,3.63143,1800.8,1800.7,12.06132963]
[1745980602216,7.45943,1800.8,1800.7,12.06132963]
[1745980602518,7.45943,1800.8,1800.7,4.6594]
[1745980604718,3.828,1800.8,1800.7,4.6594]
[1745980604919,3.828,1800.8,1800.7,5.5161]
[1745980605517,4.93833,1800.8,1800.7,5.5161]
[1745980606112,3.828,1800.8,1800.7,5.5161]
[1745980606713,3.828,1800.8,1800.7,7.2204]
[1745980608519,3.828,1800.8,1800.7,3.549]
[1745980608520,4.93833,1800.8,1800.7,3.549]
[1745980608720,6.3355,1800.8,1800.7,4.6594]
[1745980609717,7.44583,1800.8,1800.7,4.6594]
[1745980609924,7.44583,1800.8,1800.7,3.549]
[1745980611124,7.44583,1800.8,1800.7,4.6594]
[1745980611323,7.44583,1800.8,1800.7,3.549]
[1745980611822,7.44583,1800.8,1800.7,4.6594]
[1745980612025,7.44583,1800.8,1800.7,3.549]
[1745980612424,7.44583,1800.8,1800.7,4.6594]
[1745980613123,1.11064,1800.4,1800.3,1.1106]
[1745980613323,1.11064,1800.4,1800.2,14.50267963]
[1745980613324,1.11064,1800.3,1800.2,14.50267963]
[1745980613511,4.47434,1800.3,1800.2,7.40192963]
[1745980614126,8.30234,1800.3,1800.2,7.40192963]
[1745980615518,13.30234,1800.3,1800.2,7.40192963]
[1745980616328,1.11089,1799.9,1799.8,2.74084]
[1745980616823,5.7485,1800.0,1799.5,7.40192963]
[1745980617121,1.11114,1799.5,1799.4,11.09513607]
[1745980617315,4.66014,1799.5,1799.4,11.09513607]
[1745980617628,7.20084,1799.5,1799.4,11.09513607]
[1745980618222,11.02884,1799.5,1799.4,11.09513607]
[1745980618419,11.02884,1799.5,1799.4,9.68467607]
[1745980618626,1.11126,1799.3,1799.2,17.77331845]
[1745980618821,4.41585942,1799.3,1799.2,7.7870841]
[1745980619228,13.29866,1799.3,1799.2,7.7870841]
[1745980620229,1.11138,1799.1,1799.0,1.6601]
[1745980620429,4.31918,1799.1,1799.0,1.6601]
[1745980620926,3.2078,1799.1,1799.0,2.77155]
[1745980621130,10.5848,1799.1,1799.0,2.77155]
[1745980621323,8.14718,1799.1,1799.0,2.77155]
[1745980621523,11.69718,1799.1,1799.0,2.77155]
[1745980621824,7.378,1799.1,1799.0,2.77155]
[1745980622024,8.48938,1799.1,1799.0,2.77155]
[1745980622227,8.48938,1799.1,1799.0,1.6601]
[1745980623733,11.69718,1799.1,1799.0,1.6601]
[1745980624033,11.69718,1799.1,1799.0,2.77155]
[1745980624233,8.14718,1799.1,1799.0,2.77155]
[1745980624435,11.69718,1799.1,1799.0,2.77155]
[1745980626521,7.0358,1799.1,1799.0,2.77155]
[1745980626721,10.5868,1799.1,1799.0,2.77155]
[1745980627433,11.69818,1799.1,1799.0,2.77155]
[1745980627834,1.11148,1799.0,1798.9,1.11145]
[1745980628133,6.55225,1799.0,1798.9,1.11145]
[1745980629332,5.4408,1799.0,1798.9,1.11145]
[1745980630537,3.828,1799.0,1798.9,1.11145]
[1745980632136,6.7588,1799.1,1799.0,1.11145]
[1745980632337,6.7588,1799.1,1798.9,1.11148]
[1745980632536,2.73128,1799.0,1798.9,1.11148]
[1745980633137,6.55928,1799.0,1798.9,1.11148]
[1745980633333,5.4478,1799.0,1798.7,0.8665]
[1745980633634,5.4478,1799.0,1798.8,1.11157]
[1745980633635,6.73985,1798.9,1798.8,1.11157]
[1745980633835,1.11157,1798.8,1798.7,3.64729]
[1745980634036,6.28337,1798.8,1798.7,3.64729]
[1745980634236,10.11137,1798.8,1798.7,3.64729]
[1745980634536,8.9998,1798.8,1798.7,3.64729]
[1745980635243,10.11137,1798.8,1798.7,3.64729]
[1745980636237,8.9998,1798.8,1798.7,3.64729]
[1745980637839,10.11137,1798.8,1798.7,3.64729]
[1745980639442,7.38,1798.8,1798.7,3.64729]
[1745980640240,3.2078,1798.9,1798.8,1.11157]
[1745980640441,3.2078,1798.9,1798.8,2.84627]
[1745980640843,4.31931,1798.9,1798.8,2.84627]
[1745980641143,8.14731,1798.9,1798.8,2.84627]
[1745980642039,10.63641,1798.9,1798.8,2.84627]
[1745980644139,14.18841,1798.9,1798.8,2.84627]
[1745980645944,13.0769,1798.9,1798.8,2.84627]
[1745980646145,7.0358,1798.9,1798.8,2.84627]
[1745980647243,8.14731,1798.9,1798.8,2.84627]
[1745980647941,1.11157,1798.8,1798.7,0.8665]
[1745980648147,1.11182,1798.5,1798.4,1.11177]
[1745980648345,1.11174,1798.6,1798.5,1.11169]
[1745980648743,1.11181,1798.5,1798.4,1.11177]
[1745980649247,4.93981,1798.5,1798.4,1.11177]
[1745980649645,5.75141,1798.5,1798.4,1.11177]
[1745980649846,4.6396,1798.5,1798.4,1.11177]
[1745980650046,4.6396,1798.5,1798.4,2.84107]
[1745980650241,3.828,1798.5,1798.4,2.84107]
[1745980651350,10.21633,1798.6,1798.5,1.11175]
[1745980654752,9.1046,1798.6,1798.5,1.11175]
[1745980655051,10.21629,1798.6,1798.5,1.11175]
[1745980655354,6.66429,1798.6,1798.5,1.11175]
[1745980655546,1.11182,1798.4,1798.3,0.8137]
[1745980655747,1.11187,1798.4,1798.3,1.11182]
[1745980656256,4.0077,1798.5,1798.4,1.11182]
[1745980656752,0.7999,1798.5,1798.4,1.11182]
[1745980657254,3.828,1798.5,1798.4,2.85982]
[1745980658348,3.553,1798.6,1798.5,1.11175]
[1745980658549,3.553,1798.6,1798.5,3.52585]
[1745980658750,4.66469,1798.6,1798.5,3.52585]
[1745980658952,6.31129,1798.6,1798.5,3.52585]
[1745980659160,10.13929,1798.6,1798.5,3.52585]
[1745980661757,10.13929,1798.6,1798.5,1.11175]
[1745980662359,1.11175,1798.5,1798.4,2.82176]
[1745980662659,11.70055,1798.6,1798.5,1.11175]
[1745980662856,13.44505,1798.6,1798.5,1.11175]
[1745980663260,1.11182,1798.5,1798.4,1.11176]
[1745980663462,2.85632,1798.5,1798.4,1.11176]
[1745980664254,6.68432,1798.5,1798.4,1.11176]
[1745980665561,5.5725,1798.5,1798.4,1.11176]
[1745980665760,5.5725,1798.5,1798.4,2.78936]
[1745980668061,3.828,1798.5,1798.4,2.78936]
[1745980668266,3.828,1798.5,1798.4,3.62116]
[1745980668766,4.93975,1798.5,1798.4,3.62116]
[1745980669064,3.828,1798.5,1798.4,1.11176]
[1745980669253,2.80035,1798.5,1798.4,2.84196]
[1745980669661,1.6886,1798.5,1798.4,2.84196]
[1745980670468,2.80035,1798.5,1798.4,2.84196]
[1745980670657,1.6886,1798.5,1798.4,2.84196]
[1745980672167,1.11188,1798.4,1798.3,1.11183]
[1745980672361,2.81718,1798.4,1798.3,1.11183]
[1745980672561,4.43268,1798.4,1798.3,1.11183]
[1745980673172,8.26068,1798.4,1798.3,1.11183]
[1745980675778,7.1488,1798.4,1798.3,1.11183]
[1745980675976,6.3052,1798.4,1798.3,2.81363]
[1745980676680,6.3052,1798.4,1798.3,3.68343]
[1745980677178,7.41702,1798.4,1798.3,3.68343]
[1745980677379,7.41702,1798.4,1798.3,2.81363]
[1745980678279,6.3052,1798.4,1798.3,2.81363]
[1745980678980,7.41702,1798.4,1798.3,2.81363]
[1745980679374,6.3052,1798.4,1798.3,2.81363]
[1745980679780,3.828,1798.4,1798.3,2.81363]
[1745980681178,3.68118983,1798.5,1798.4,1.11182]
[1745980681480,3.68118983,1798.5,1798.4,4.35592]
[1745980682274,7.50918983,1798.5,1798.4,4.35592]
[1745980683180,3.828,1798.5,1798.4,4.35592]
[1745980684182,5.4045,1798.6,1798.5,1.11175]
[1745980684381,3.828,1798.6,1798.5,2.69305]
[1745980685071,5.4831,1798.6,1798.5,2.69305]
[1745980685682,6.59479,1798.6,1798.5,2.69305]
[1745980686786,6.59479,1798.6,1798.5,1.11175]
[1745980687286,1.11182,1798.5,1798.4,1.11178]
[1745980687478,5.63377,1798.5,1798.2,3.2078]
[1745980687786,4.31973,1798.3,1798.2,1.11188]
[1745980688083,3.2078,1798.3,1798.2,1.11188]
[1745980688277,7.0358,1798.3,1798.2,1.11188]
[1745980688473,9.89008,1798.3,1798.2,1.11188]
[1745980688885,8.7782,1798.3,1798.2,1.11188]
[1745980689987,9.89008,1798.3,1798.2,1.11188]
[1745980696696,13.57126983,1798.3,1798.2,1.11188]
[1745980697594,10.36346983,1798.3,1798.2,1.11188]
[1745980709608,9.25158983,1798.3,1798.2,1.11188]
[1745980709910,7.50918983,1798.3,1798.2,2.85408]
[1745980710212,3.68118983,1798.3,1798.2,3.68978]
[1745980712211,1.6038,1798.4,1798.3,1.11188]
[1745980712712,6.54362,1798.4,1798.3,1.11188]
[1745980714712,11.41918,1798.4,1798.0,0.8142]
[1745980714913,1.112,1798.2,1798.1,1.11198]
[1745980715311,7.5027,1798.2,1798.1,1.11198]
[1745980717914,7.5027,1798.2,1798.1,2.76308]
[1745980719417,11.18388983,1798.2,1798.1,2.76308]
[1745980719920,9.21798983,1798.2,1798.1,2.76308]
[1745980720122,7.50918983,1798.2,1798.1,2.76308]
[1745980721220,3.68118983,1798.2,1798.1,2.76308]
[1745980721422,4.79312983,1798.2,1798.1,2.76308]
[1745980722222,7.50918983,1798.2,1798.1,2.76308]
[1745980723222,3.828,1798.2,1798.1,2.76308]
[1745980723721,4.93994,1798.2,1798.1,2.76308]
[1745980724220,6.62144,1798.2,1798.1,2.76308]
[1745980725320,5.5095,1798.2,1798.1,2.76308]
[1745980725823,6.62144,1798.2,1798.1,2.76308]
[1745980726620,5.5095,1798.2,1798.1,2.76308]
[1745980727620,3.828,1798.2,1798.1,2.76308]
[1745980728223,3.68118983,1798.3,1798.2,1.11194]
[1745980728526,3.68118983,1798.3,1798.2,3.61774]
[1745980728921,3.68118983,1798.3,1798.2,6.82554]
[1745980729225,3.68118983,1798.3,1798.2,11.82554]
[1745980730025,5.52178475,1798.4,1798.2,11.82554]
[1745980730026,3.68118983,1798.4,1798.3,1.11188]
[1745980730322,3.68118983,1798.4,1798.3,7.46668]
[1745980731223,3.68118983,1798.4,1798.3,3.63868]
[1745980731924,3.68118983,1798.4,1798.3,8.63868]
[1745980733526,3.68118983,1798.4,1798.3,49.43868]
[1745980733723,7.38764946,1798.6,1798.3,48.3268]
[1745980733930,7.38764946,1798.6,1798.5,4.31955]
[1745980734228,2.5727,1798.8,1798.7,1.11163]
[1745980735230,2.5727,1798.8,1798.7,2.78433]
[1745980736530,3.68427,1798.8,1798.7,1.11163]
[1745980737124,7.51227,1798.8,1798.7,1.11163]
[1745980739830,6.4007,1798.8,1798.7,1.11163]
[1745980740530,7.51227,1798.8,1798.7,1.11163]
[1745980741430,6.4007,1798.8,1798.7,1.11163]
[1745980741630,7.51227,1798.8,1798.7,1.11163]
[1745980742130,6.4007,1798.8,1798.7,1.11163]
[1745980742431,7.51227,1798.8,1798.7,1.11163]
[1745980743829,6.4007,1798.8,1798.7,1.11163]
[1745980744431,7.51227,1798.8,1798.7,1.11163]
[1745980745232,6.4007,1798.8,1798.7,1.11163]
[1745980745427,6.4007,1798.8,1798.7,2.84683]
[1745980745628,6.4007,1798.8,1798.7,3.67393]
[1745980746230,2.5727,1798.8,1798.7,3.67393]
[1745980746426,2.5727,1798.8,1798.7,4.53103]
[1745980747434,2.5727,1798.8,1798.7,3.67393]
[1745980748135,6.4007,1798.8,1798.7,3.67393]
[1745980751334,2.5727,1798.8,1798.7,3.67393]
[1745980757642,1.11137,1799.2,1798.8,1.11157]
[1745980757839,1.11137,1799.2,1799.1,1.11138]
[1745980758246,4.93937,1799.2,1799.1,1.11138]
[1745980760948,5.76007,1799.2,1799.1,1.11138]
[1745980763051,8.19747,1799.2,1799.1,1.11138]
[1745980764146,7.0861,1799.2,1799.1,1.11138]
[1745980764346,3.57240458,1799.2,1799.1,4.31918]
[1745980764548,3.57240458,1799.2,1799.1,6.75238]
[1745980765255,0.8349,1799.4,1799.3,1.11126]
[1745980765550,4.8103,1799.5,1799.4,1.1112]
[1745980766145,8.6383,1799.5,1799.4,3.6153]
[1745980767155,7.0358,1799.5,1799.4,3.6153]
[1745980768355,3.2078,1799.5,1799.4,3.6153]
[1745980770547,4.31894,1799.5,1799.4,1.1112]
[1745980770743,6.00694,1799.5,1799.4,1.1112]
[1745980770952,4.8958,1799.5,1799.4,1.1112]
[1745980771255,8.7238,1799.5,1799.4,1.1112]
[1745980771549,5.516,1799.5,1799.4,1.1112]
[1745980772147,0.852,1799.6,1799.5,1.11114]
[1745980772548,2.5849,1799.6,1799.5,1.11114]
[1745980773253,6.4129,1799.6,1799.5,1.11114]
[1745980774355,6.4129,1799.6,1799.5,1.97634]
[1745980776456,3.828,1799.6,1799.5,1.97634]
[1745980776653,2.64807,1799.6,1799.5,10.18414]
[1745980776850,0.34879,1799.6,1799.5,11.83624]
[1745980777250,5.7659,1800.0,1799.9,1.11089]
[1745980777545,5.7659,1800.0,1799.9,4.65889]
[1745980777956,5.7659,1800.0,1799.9,6.24869]
[1745980778249,5.7659,1800.0,1799.9,4.65889]
[1745980778451,6.5662,1800.0,1799.9,4.65889]
[1745980778651,7.67703,1800.0,1799.9,4.65889]
[1745980778847,6.5662,1800.0,1799.9,4.65889]
[1745980779346,10.3942,1800.0,1799.9,4.65889]
[1745980781045,11.50503,1800.0,1799.9,4.65889]
[1745980782155,10.3942,1800.0,1799.9,4.65889]
[1745980782457,7.1864,1800.0,1799.9,4.65889]
[1745980782955,6.3861,1800.0,1799.9,4.65889]
[1745980783156,4.6726,1800.0,1799.9,6.33029]
[1745980783357,3.828,1800.0,1799.9,6.33029]
[1745980785155,5.55278,1800.5,1800.4,1.11058]
[1745980785156,1.11054,1800.5,1800.4,1.11058]
[1745980785549,2.80924,1800.5,1800.4,1.11058]
[1745980786159,5.5267,1800.5,1800.4,1.11058]
[1745980786460,3.828,1800.5,1800.4,1.11058]
[1745980786656,4.93852,1800.5,1800.4,1.11058]
[1745980786961,6.52262,1800.5,1800.4,1.11058]
[1745980787660,5.4121,1800.5,1800.4,1.11058]
[1745980788662,6.52262,1800.5,1800.4,1.11058]
[1745980789457,5.4121,1800.5,1800.4,1.11058]
[1745980791464,6.52262,1800.5,1800.4,1.11058]
[1745980791663,5.4121,1800.5,1800.4,1.11058]
[1745980793064,6.52262,1800.5,1800.4,1.11058]
[1745980796166,3.828,1800.5,1800.4,1.11058]
[1745980797666,4.93852,1800.5,1800.4,1.11058]
[1745980798260,1.11052,1800.5,1800.4,1.11058]
[1745980799163,3.828,1800.5,1800.4,1.11058]
[1745980800865,3.828,1800.5,1800.4,2.71668]
[1745980801264,4.93852,1800.5,1800.4,2.71668]
[1745980802868,6.56672,1800.5,1800.4,2.71668]
[1745980804667,3.828,1800.5,1800.4,2.71668]
[1745980804872,3.828,1800.5,1800.4,10.92448]
[1745980805076,2.65933,1800.5,1800.4,10.92448]
[1745980805368,0.8511,1801.0,1800.9,1.11027]
[1745980805566,0.8511,1801.0,1800.9,4.65527]
[1745980805961,1.7454,1801.1,1801.0,1.11021]
[1745980806160,6.68355,1801.1,1801.0,2.71391]
[1745980806765,4.93815,1801.1,1801.0,2.71391]
[1745980807071,3.828,1801.1,1801.0,2.71391]
[1745980807264,6.4245,1801.1,1801.0,2.71391]
[1745980810171,4.6791,1801.1,1801.0,2.71391]
[1745980812668,5.78925,1801.1,1801.0,2.71391]
[1745980812873,1.11021,1801.0,1800.9,4.65526]
[1745980813075,5.95381,1801.0,1800.9,3.545]
[1745980813266,14.78181,1801.0,1800.9,3.545]
[1745980813774,9.78181,1801.0,1800.9,4.65527]
[1745980816175,9.78181,1801.0,1800.9,3.545]
[1745980816474,9.78181,1801.0,1800.9,4.65527]
[1745980817276,1.11027,1800.9,1800.8,1.11028]
[1745980817579,1.1104,1800.7,1800.6,4.65441]
[1745980818276,6.5963,1800.7,1800.6,4.65441]
[1745980818478,6.5963,1800.7,1800.6,6.35891]
[1745980818676,5.4859,1800.7,1800.6,6.35891]
[1745980818879,6.5963,1800.7,1800.6,6.35891]
[1745980819180,4.9384,1800.7,1800.6,7.18041]
[1745980819480,3.828,1800.7,1800.6,7.18041]
[1745980820177,1.11032,1800.9,1800.8,1.11033]
[1745980820769,1.11032,1800.9,1800.8,2.81323]
[1745980821073,4.93832,1800.9,1800.8,2.81323]
[1745980821776,1.11033,1800.8,1800.7,1.91534]
[1745980821979,1.92293,1800.8,1800.7,3.6183]
[1745980822174,7.36763,1800.8,1800.7,3.6183]